[Event "Titled Tuesday Blitz May 03 Early 2022"]
[White "Mohammadian, Mohammad"]
[Black "De Souza, Cristiano Gomes"]
[WhiteFideId "12566055"]
[BlackFideId "2151758"]
[WhiteElo "1544"]
[BlackElo "2068"]
[Result "1/2-1/2"]
[Round "07"]
[TimeControl "180+1"]
[Date "2022.05.03"]
[WhiteClock "0:01:26"]
[BlackClock "0:01:59"]

1. e4 {[%clk 0:03:00]}  c5 {[%clk 0:02:59]} 2. Nf3 {[%clk 0:03:00]}  d6 {[%clk 0:02:59]} 3. d4 {[%clk 0:02:59]}  cxd4 {[%clk 0:02:59]} 4. Nxd4 {[%clk 0:02:58]}  Nf6 {[%clk 0:02:59]} 5. Nc3 {[%clk 0:02:57]}  a6 {[%clk 0:02:56]} 6. Be2 {[%clk 0:02:57]}  e5 {[%clk 0:02:55]} 7. Nb3 {[%clk 0:02:55]}  Be7 {[%clk 0:02:54]} 8. Be3 {[%clk 0:02:53]}  Nc6 {[%clk 0:02:53]} 9. O-O {[%clk 0:02:51]}  O-O {[%clk 0:02:52]} 10. f4 {[%clk 0:02:51]}  exf4 {[%clk 0:02:51]} 11. Bxf4 {[%clk 0:02:50]}  Ne5 {[%clk 0:02:51]} 12. Bxe5 {[%clk 0:02:47]}  dxe5 {[%clk 0:02:50]} 13. Qxd8 {[%clk 0:02:45]}  Rxd8 {[%clk 0:02:49]} 14. Bd3 {[%clk 0:02:45]}  Be6 {[%clk 0:02:49]} 15. Rf3 {[%clk 0:02:41]}  b5 {[%clk 0:02:48]} 16. a3 {[%clk 0:02:40]}  Bxb3 {[%clk 0:02:46]} 17. cxb3 {[%clk 0:02:38]}  Bc5+ {[%clk 0:02:44]} 18. Kf1 {[%clk 0:02:33]}  Rd7 {[%clk 0:02:43]} 19. Ke2 {[%clk 0:02:27]}  Rad8 {[%clk 0:02:42]} 20. Rd1 {[%clk 0:02:24]}  Nh5 {[%clk 0:02:40]} 21. g3 {[%clk 0:02:20]}  Bd4 {[%clk 0:02:39]} 22. b4 {[%clk 0:02:11]}  Nf6 {[%clk 0:02:34]} 23. Rdf1 {[%clk 0:02:06]}  h6 {[%clk 0:02:27]} 24. Nd5 {[%clk 0:02:05]}  Nxd5 {[%clk 0:02:26]} 25. exd5 {[%clk 0:02:05]}  Bxb2 {[%clk 0:02:25]} 26. Be4 {[%clk 0:02:00]}  Bd4 {[%clk 0:02:23]} 27. Rc1 {[%clk 0:01:56]}  Rd6 {[%clk 0:02:21]} 28. Rc6 {[%clk 0:01:54]}  Rxc6 {[%clk 0:02:20]} 29. dxc6 {[%clk 0:01:53]}  Rc8 {[%clk 0:02:17]} 30. h3 {[%clk 0:01:52]}  Rc7 {[%clk 0:02:17]} 31. g4 {[%clk 0:01:51]}  Kf8 {[%clk 0:02:15]} 32. Bd5 {[%clk 0:01:48]}  f6 {[%clk 0:02:14]} 33. Be4 {[%clk 0:01:47]}  Ke7 {[%clk 0:02:14]} 34. Kd3 {[%clk 0:01:44]}  Kd6 {[%clk 0:02:15]} 35. h4 {[%clk 0:01:43]}  Rf7 {[%clk 0:02:11]} 36. h5 {[%clk 0:01:41]}  Rf8 {[%clk 0:02:08]} 37. Rf1 {[%clk 0:01:38]}  Rc8 {[%clk 0:02:07]} 38. Rc1 {[%clk 0:01:37]}  Rc7 {[%clk 0:02:07]} 39. Rc2 {[%clk 0:01:33]}  Rc8 {[%clk 0:02:06]} 40. Ke2 {[%clk 0:01:28]}  Rc7 {[%clk 0:02:03]} 41. Kf3 {[%clk 0:01:28]}  Rc8 {[%clk 0:02:01]} 42. Ke2 {[%clk 0:01:27]}  Rc7 {[%clk 0:02:00]} 43. Kd3 {[%clk 0:01:27]}  Rc8 {[%clk 0:01:59]} 44. Ke2 {[%clk 0:01:26]} 1/2-1/2


[Site "https://www.chess.com"]

[Event "Titled Tuesday Blitz May 03 Early 2022"]
[White "Omariev, Maksim"]
[Black "Csonka, Balazs"]
[WhiteFideId "4193423"]
[BlackFideId "742910"]
[WhiteElo "2511"]
[BlackElo "2404"]
[Result "0-1"]
[Round "07"]
[TimeControl "180+1"]
[Date "2022.05.03"]
[WhiteClock "0:00:03"]
[BlackClock "0:00:04"]

1. e4 {[%clk 0:03:00]}  c6 {[%clk 0:02:58]} 2. d4 {[%clk 0:02:58]}  d5 {[%clk 0:02:56]} 3. exd5 {[%clk 0:02:59]}  cxd5 {[%clk 0:02:56]} 4. h3 {[%clk 0:03:00]}  Nc6 {[%clk 0:02:53]} 5. Nf3 {[%clk 0:02:48]}  Bf5 {[%clk 0:02:48]} 6. c3 {[%clk 0:02:41]}  Nf6 {[%clk 0:02:43]} 7. Bf4 {[%clk 0:02:40]}  e6 {[%clk 0:02:38]} 8. Nbd2 {[%clk 0:02:38]}  Bd6 {[%clk 0:02:34]} 9. Bxd6 {[%clk 0:02:38]}  Qxd6 {[%clk 0:02:35]} 10. Be2 {[%clk 0:02:39]}  h6 {[%clk 0:02:27]} 11. O-O {[%clk 0:02:29]}  O-O {[%clk 0:02:26]} 12. Re1 {[%clk 0:02:29]}  Rab8 {[%clk 0:02:20]} 13. a4 {[%clk 0:02:30]}  Rfc8 {[%clk 0:02:14]} 14. Bf1 {[%clk 0:02:27]}  Ne4 {[%clk 0:02:07]} 15. Nxe4 {[%clk 0:02:16]}  Bxe4 {[%clk 0:02:05]} 16. Nd2 {[%clk 0:02:17]}  Bg6 {[%clk 0:02:03]} 17. a5 {[%clk 0:02:17]}  Re8 {[%clk 0:01:27]} 18. Nb3 {[%clk 0:02:11]}  Qc7 {[%clk 0:01:23]} 19. Bb5 {[%clk 0:02:04]}  a6 {[%clk 0:01:12]} 20. Bxc6 {[%clk 0:01:47]}  Qxc6 {[%clk 0:01:10]} 21. Nc5 {[%clk 0:01:07]}  e5 {[%clk 0:01:06]} 22. b4 {[%clk 0:01:07]}  e4 {[%clk 0:01:03]} 23. Qg4 {[%clk 0:00:56]}  Qd6 {[%clk 0:00:53]} 24. Qd7 {[%clk 0:00:21]}  Qxd7 {[%clk 0:00:31]} 25. Nxd7 {[%clk 0:00:22]}  Rbc8 {[%clk 0:00:30]} 26. Nc5 {[%clk 0:00:18]}  Rc7 {[%clk 0:00:29]} 27. f3 {[%clk 0:00:15]}  e3 {[%clk 0:00:17]} 28. Ra2 {[%clk 0:00:11]}  f5 {[%clk 0:00:17]} 29. g3 {[%clk 0:00:11]}  Bh5 {[%clk 0:00:13]} 30. Kg2 {[%clk 0:00:08]}  g5 {[%clk 0:00:12]} 31. g4 {[%clk 0:00:05]}  Bg6 {[%clk 0:00:12]} 32. gxf5 {[%clk 0:00:05]}  Bxf5 {[%clk 0:00:13]} 33. Rae2 {[%clk 0:00:06]}  Rce7 {[%clk 0:00:12]} 34. Kg3 {[%clk 0:00:04]}  Kh7 {[%clk 0:00:10]} 35. f4 {[%clk 0:00:04]}  Bg6 {[%clk 0:00:10]} 36. fxg5 {[%clk 0:00:02]}  hxg5 {[%clk 0:00:10]} 37. h4 {[%clk 0:00:03]}  Bh5 {[%clk 0:00:09]} 38. Rh2 {[%clk 0:00:03]}  Rg8 {[%clk 0:00:07]} 39. Nd3 {[%clk 0:00:02]}  Re4 {[%clk 0:00:05]} 40. Ne5 {[%clk 0:00:02]}  gxh4+ {[%clk 0:00:04]} 41. Kh3 {[%clk 0:00:03]}  Rg3# {[%clk 0:00:04]} 0-1


[Site "https://www.chess.com"]

[Event "Titled Tuesday Blitz May 03 Early 2022"]
[White "Perez Gormaz, Matias"]
[Black "Bendayan Claros, Aaron"]
[WhiteFideId "3406342"]
[BlackFideId "3803392"]
[WhiteElo "2322"]
[BlackElo "2132"]
[Result "0-1"]
[Round "07"]
[TimeControl "180+1"]
[Date "2022.05.03"]
[WhiteClock "0:00:01"]
[BlackClock "0:00:07"]

1. e4 {[%clk 0:03:00]}  c6 {[%clk 0:02:52]} 2. Nf3 {[%clk 0:02:55]}  d5 {[%clk 0:02:49]} 3. Nc3 {[%clk 0:02:55]}  dxe4 {[%clk 0:02:49]} 4. Nxe4 {[%clk 0:02:56]}  Nf6 {[%clk 0:02:50]} 5. Qe2 {[%clk 0:02:57]}  Bg4 {[%clk 0:02:49]} 6. Nxf6+ {[%clk 0:02:52]}  gxf6 {[%clk 0:02:49]} 7. h3 {[%clk 0:02:51]}  Bxf3 {[%clk 0:02:47]} 8. Qxf3 {[%clk 0:02:52]}  Qd5 {[%clk 0:02:47]} 9. Be2 {[%clk 0:02:52]}  Qxf3 {[%clk 0:02:46]} 10. Bxf3 {[%clk 0:02:53]}  Nd7 {[%clk 0:02:47]} 11. d4 {[%clk 0:02:53]}  e6 {[%clk 0:02:47]} 12. c3 {[%clk 0:02:53]}  f5 {[%clk 0:02:47]} 13. g4 {[%clk 0:02:49]}  fxg4 {[%clk 0:02:34]} 14. hxg4 {[%clk 0:02:50]}  O-O-O {[%clk 0:02:19]} 15. Bf4 {[%clk 0:02:37]}  e5 {[%clk 0:02:14]} 16. Be3 {[%clk 0:01:58]}  Bg7 {[%clk 0:02:05]} 17. O-O-O {[%clk 0:01:55]}  exd4 {[%clk 0:02:05]} 18. Bxd4 {[%clk 0:01:55]}  Bxd4 {[%clk 0:02:05]} 19. Rxd4 {[%clk 0:01:56]}  Ne5 {[%clk 0:02:00]} 20. Rxd8+ {[%clk 0:01:54]}  Kxd8 {[%clk 0:01:52]} 21. Be2 {[%clk 0:01:52]}  Ke7 {[%clk 0:01:46]} 22. Kd2 {[%clk 0:01:51]}  Kf6 {[%clk 0:01:34]} 23. f4 {[%clk 0:01:51]}  Ng6 {[%clk 0:01:23]} 24. Rf1 {[%clk 0:01:45]}  h6 {[%clk 0:01:10]} 25. Bd3 {[%clk 0:01:45]}  Ne7 {[%clk 0:00:59]} 26. Ke3 {[%clk 0:01:40]}  Re8 {[%clk 0:00:52]} 27. Kf3 {[%clk 0:01:38]}  Nd5 {[%clk 0:00:51]} 28. Be4 {[%clk 0:01:35]}  Nb6 {[%clk 0:00:44]} 29. Rh1 {[%clk 0:01:29]}  Kg7 {[%clk 0:00:42]} 30. b3 {[%clk 0:01:25]}  a5 {[%clk 0:00:36]} 31. g5 {[%clk 0:01:04]}  hxg5 {[%clk 0:00:35]} 32. fxg5 {[%clk 0:01:05]}  Nd7 {[%clk 0:00:25]} 33. Kf4 {[%clk 0:00:57]}  Nc5 {[%clk 0:00:23]} 34. Bf5 {[%clk 0:00:53]}  Re2 {[%clk 0:00:18]} 35. Rh7+ {[%clk 0:00:32]}  Kg8 {[%clk 0:00:18]} 36. g6 {[%clk 0:00:32]}  Rf2+ {[%clk 0:00:15]} 37. Kg5 {[%clk 0:00:19]}  fxg6 {[%clk 0:00:07]} 38. Bxg6 {[%clk 0:00:08]}  Ne6+ {[%clk 0:00:07]} 39. Kg4 {[%clk 0:00:03]}  Rg2+ {[%clk 0:00:07]} 40. Kf5 {[%clk 0:00:03]}  Rxg6 {[%clk 0:00:08]} 41. Rxb7 {[%clk 0:00:01]}  Rh6 {[%clk 0:00:07]} 0-1


[Site "https://www.chess.com"]

[Event "Titled Tuesday Blitz May 03 Early 2022"]
[White "Peterson, Eric"]
[Black "Avazkhonov, Alikhon"]
[WhiteFideId "14908395"]
[BlackFideId "14208504"]
[WhiteElo "2195"]
[BlackElo "1739"]
[Result "0-1"]
[Round "07"]
[TimeControl "180+1"]
[Date "2022.05.03"]
[WhiteClock "0:00:54"]
[BlackClock "0:00:08"]

1. e4 {[%clk 0:03:00]}  c6 {[%clk 0:02:55]} 2. d4 {[%clk 0:03:00]}  d5 {[%clk 0:02:56]} 3. exd5 {[%clk 0:03:01]}  cxd5 {[%clk 0:02:57]} 4. c4 {[%clk 0:03:01]}  Nf6 {[%clk 0:02:56]} 5. Nc3 {[%clk 0:03:01]}  g6 {[%clk 0:02:55]} 6. Qb3 {[%clk 0:03:00]}  Bg7 {[%clk 0:02:37]} 7. cxd5 {[%clk 0:03:00]}  O-O {[%clk 0:02:37]} 8. Be2 {[%clk 0:03:00]}  b6 {[%clk 0:02:35]} 9. Bf3 {[%clk 0:02:57]}  Bb7 {[%clk 0:02:36]} 10. Nge2 {[%clk 0:02:57]}  Na6 {[%clk 0:02:34]} 11. Bg5 {[%clk 0:02:55]}  h6 {[%clk 0:02:30]} 12. Bxf6 {[%clk 0:02:55]}  Bxf6 {[%clk 0:02:31]} 13. O-O {[%clk 0:02:52]}  Qd7 {[%clk 0:02:28]} 14. Ng3 {[%clk 0:02:43]}  Nc7 {[%clk 0:02:27]} 15. Rad1 {[%clk 0:02:21]}  Rab8 {[%clk 0:02:01]} 16. Rfe1 {[%clk 0:02:09]}  Rfd8 {[%clk 0:01:56]} 17. Nge4 {[%clk 0:02:07]}  Nxd5 {[%clk 0:01:51]} 18. Nxd5 {[%clk 0:02:02]}  Bxd5 {[%clk 0:01:52]} 19. Nxf6+ {[%clk 0:02:01]}  exf6 {[%clk 0:01:51]} 20. Bxd5 {[%clk 0:02:00]}  Qxd5 {[%clk 0:01:52]} 21. Qxd5 {[%clk 0:01:59]}  Rxd5 {[%clk 0:01:53]} 22. Re7 {[%clk 0:01:59]}  a5 {[%clk 0:01:42]} 23. g3 {[%clk 0:01:52]}  Rc8 {[%clk 0:01:22]} 24. Rb7 {[%clk 0:01:49]}  b5 {[%clk 0:01:20]} 25. Rd2 {[%clk 0:01:47]}  b4 {[%clk 0:00:38]} 26. Ra7 {[%clk 0:01:46]}  Rc1+ {[%clk 0:00:25]} 27. Kg2 {[%clk 0:01:45]}  Kg7 {[%clk 0:00:24]} 28. h4 {[%clk 0:01:43]}  h5 {[%clk 0:00:21]} 29. Kf3 {[%clk 0:01:43]}  Rf1 {[%clk 0:00:13]} 30. Ke4 {[%clk 0:01:40]}  Rb5 {[%clk 0:00:09]} 31. d5 {[%clk 0:01:39]}  Re1+ {[%clk 0:00:10]} 32. Kf3 {[%clk 0:01:39]}  Re8 {[%clk 0:00:03]} 33. d6 {[%clk 0:01:39]}  Rd8 {[%clk 0:00:04]} 34. d7 {[%clk 0:01:39]}  g5 {[%clk 0:00:03]} 35. Rd4 {[%clk 0:01:31]}  Kg6 {[%clk 0:00:03]} 36. b3 {[%clk 0:01:29]}  Kf5 {[%clk 0:00:02]} 37. Ra6 {[%clk 0:01:22]}  g4+ {[%clk 0:00:02]} 38. Ke3 {[%clk 0:01:18]}  Re5+ {[%clk 0:00:01]} 39. Kd3 {[%clk 0:01:18]}  Kg6 {[%clk 0:00:01]} 40. Kc4 {[%clk 0:01:13]}  Rf5 {[%clk 0:00:02]} 41. Rd2 {[%clk 0:01:10]}  Kg7 {[%clk 0:00:01]} 42. Rad6 {[%clk 0:01:06]}  Kf8 {[%clk 0:00:02]} 43. Ra6 {[%clk 0:01:03]}  Ke7 {[%clk 0:00:02]} 44. Ra7 {[%clk 0:01:04]}  Ke6 {[%clk 0:00:02]} 45. Ra6+ {[%clk 0:01:03]}  Ke7 {[%clk 0:00:02]} 46. Ra7 {[%clk 0:01:04]}  Re5 {[%clk 0:00:02]} 47. Rc7 {[%clk 0:00:56]}  Ke6 {[%clk 0:00:03]} 48. Rc6+ {[%clk 0:00:55]}  Ke7 {[%clk 0:00:03]} 49. Rc7 {[%clk 0:00:56]}  Ke6 {[%clk 0:00:03]} 50. Ra7 {[%clk 0:00:56]}  Ke7 {[%clk 0:00:04]} 51. Rd3 {[%clk 0:00:54]}  Re2 {[%clk 0:00:03]} 52. Re3+ {[%clk 0:00:54]}  Rxe3 {[%clk 0:00:03]} 53. fxe3 {[%clk 0:00:55]}  Rxd7 {[%clk 0:00:03]} 54. Rxd7+ {[%clk 0:00:55]}  Kxd7 {[%clk 0:00:03]} 55. Kb5 {[%clk 0:00:56]}  Kd6 {[%clk 0:00:01]} 56. Kxa5 {[%clk 0:00:57]}  Kc5 {[%clk 0:00:02]} 57. Ka4 {[%clk 0:00:56]}  f5 {[%clk 0:00:03]} 58. a3 {[%clk 0:00:57]}  bxa3 {[%clk 0:00:03]} 59. Kxa3 {[%clk 0:00:57]}  Kd5 {[%clk 0:00:04]} 60. Ka4 {[%clk 0:00:55]}  Ke4 {[%clk 0:00:04]} 61. b4 {[%clk 0:00:55]}  Kxe3 {[%clk 0:00:03]} 62. b5 {[%clk 0:00:56]}  f4 {[%clk 0:00:04]} 63. gxf4 {[%clk 0:00:54]}  g3 {[%clk 0:00:04]} 64. b6 {[%clk 0:00:54]}  g2 {[%clk 0:00:05]} 65. b7 {[%clk 0:00:55]}  g1=Q {[%clk 0:00:06]} 66. b8=Q {[%clk 0:00:55]}  Qa1+ {[%clk 0:00:06]} 67. Kb5 {[%clk 0:00:54]}  Qb1+ {[%clk 0:00:06]} 68. Kc6 {[%clk 0:00:54]}  Qxb8 {[%clk 0:00:07]} 69. Kd7 {[%clk 0:00:54]}  Qxf4 {[%clk 0:00:08]} 0-1


[Site "https://www.chess.com"]

[Event "Titled Tuesday Blitz May 03 Early 2022"]
[White "Pham, Tran Gia Phuc"]
[Black "Sirosh, Ilja"]
[WhiteFideId "12415669"]
[BlackFideId "4500458"]
[WhiteElo "1789"]
[BlackElo "2241"]
[Result "1-0"]
[Round "07"]
[TimeControl "180+1"]
[Date "2022.05.03"]
[WhiteClock "0:01:41"]
[BlackClock "0:00:48"]

1. e4 {[%clk 0:03:00]}  c5 {[%clk 0:02:59]} 2. Nc3 {[%clk 0:02:59]}  d6 {[%clk 0:02:59]} 3. d4 {[%clk 0:02:58]}  cxd4 {[%clk 0:02:58]} 4. Qxd4 {[%clk 0:02:59]}  Nc6 {[%clk 0:02:58]} 5. Qd2 {[%clk 0:02:59]}  Nf6 {[%clk 0:02:59]} 6. b3 {[%clk 0:02:58]}  e6 {[%clk 0:02:58]} 7. Bb2 {[%clk 0:02:57]}  a6 {[%clk 0:02:58]} 8. f4 {[%clk 0:02:55]}  b5 {[%clk 0:02:48]} 9. Bd3 {[%clk 0:02:55]}  Be7 {[%clk 0:02:46]} 10. Nf3 {[%clk 0:02:55]}  Bb7 {[%clk 0:02:43]} 11. O-O-O {[%clk 0:02:50]}  Qc7 {[%clk 0:02:40]} 12. g4 {[%clk 0:02:50]}  O-O {[%clk 0:02:39]} 13. g5 {[%clk 0:02:49]}  Nd7 {[%clk 0:02:39]} 14. h4 {[%clk 0:02:43]}  Nc5 {[%clk 0:02:39]} 15. Kb1 {[%clk 0:02:43]}  b4 {[%clk 0:02:38]} 16. Ne2 {[%clk 0:02:41]}  a5 {[%clk 0:02:37]} 17. f5 {[%clk 0:02:35]}  e5 {[%clk 0:02:24]} 18. f6 {[%clk 0:02:17]}  Bd8 {[%clk 0:02:24]} 19. fxg7 {[%clk 0:02:14]}  Re8 {[%clk 0:02:22]} 20. Ng3 {[%clk 0:02:11]}  a4 {[%clk 0:02:16]} 21. Bc4 {[%clk 0:02:08]}  Na5 {[%clk 0:01:55]} 22. Bd5 {[%clk 0:02:06]}  a3 {[%clk 0:01:38]} 23. Ba1 {[%clk 0:02:05]}  Ne6 {[%clk 0:01:35]} 24. Nf5 {[%clk 0:02:01]}  Ra6 {[%clk 0:01:11]} 25. Qxb4 {[%clk 0:01:45]}  Rb6 {[%clk 0:00:56]} 26. Qa4 {[%clk 0:01:42]}  Bxd5 {[%clk 0:00:48]} 27. Qxe8+ {[%clk 0:01:41]} 1-0


[Site "https://www.chess.com"]

[Event "Titled Tuesday Blitz May 03 Early 2022"]
[White "Plotnikov, Pavel"]
[Black "Vokhidov, Shamsiddin"]
[WhiteFideId "4170342"]
[BlackFideId "14204223"]
[WhiteElo "2298"]
[BlackElo "2611"]
[Result "0-1"]
[Round "07"]
[TimeControl "180+1"]
[Date "2022.05.03"]
[WhiteClock "0:00:08"]
[BlackClock "0:01:09"]

1. e4 {[%clk 0:02:59]}  c5 {[%clk 0:03:00]} 2. Nf3 {[%clk 0:02:59]}  d6 {[%clk 0:03:00]} 3. d4 {[%clk 0:02:57]}  cxd4 {[%clk 0:03:01]} 4. Nxd4 {[%clk 0:02:58]}  Nf6 {[%clk 0:03:02]} 5. Nc3 {[%clk 0:02:58]}  Nc6 {[%clk 0:03:02]} 6. Bg5 {[%clk 0:02:58]}  Bd7 {[%clk 0:03:02]} 7. Qd2 {[%clk 0:02:49]}  a6 {[%clk 0:03:02]} 8. O-O-O {[%clk 0:02:48]}  e6 {[%clk 0:03:02]} 9. f3 {[%clk 0:02:48]}  Nxd4 {[%clk 0:03:03]} 10. Qxd4 {[%clk 0:02:47]}  h6 {[%clk 0:03:03]} 11. Be3 {[%clk 0:02:48]}  Bc6 {[%clk 0:03:04]} 12. g4 {[%clk 0:02:47]}  d5 {[%clk 0:03:04]} 13. e5 {[%clk 0:01:54]}  Nd7 {[%clk 0:03:03]} 14. Qf4 {[%clk 0:01:53]}  Qc7 {[%clk 0:03:00]} 15. Bd4 {[%clk 0:01:51]}  f6 {[%clk 0:02:58]} 16. Re1 {[%clk 0:01:44]}  Be7 {[%clk 0:02:30]} 17. h4 {[%clk 0:01:33]}  Rf8 {[%clk 0:02:19]} 18. Bd3 {[%clk 0:01:26]}  fxe5 {[%clk 0:02:16]} 19. Bxe5 {[%clk 0:01:26]}  Nxe5 {[%clk 0:02:00]} 20. Qxe5 {[%clk 0:01:26]}  Qxe5 {[%clk 0:02:00]} 21. Rxe5 {[%clk 0:01:27]}  Kd7 {[%clk 0:01:56]} 22. g5 {[%clk 0:00:42]}  Bd6 {[%clk 0:01:39]} 23. Re2 {[%clk 0:00:41]}  Rxf3 {[%clk 0:01:32]} 24. gxh6 {[%clk 0:00:38]}  Bf4+ {[%clk 0:01:28]} 25. Kd1 {[%clk 0:00:36]}  Bxh6 {[%clk 0:01:28]} 26. Rhe1 {[%clk 0:00:35]}  Rf6 {[%clk 0:01:25]} 27. b4 {[%clk 0:00:19]}  Kd6 {[%clk 0:01:23]} 28. a4 {[%clk 0:00:18]}  Rc8 {[%clk 0:01:21]} 29. b5 {[%clk 0:00:17]}  Bd7 {[%clk 0:01:21]} 30. Na2 {[%clk 0:00:16]}  axb5 {[%clk 0:01:15]} 31. axb5 {[%clk 0:00:12]}  Ra8 {[%clk 0:01:12]} 32. Nc1 {[%clk 0:00:11]}  Ra1 {[%clk 0:01:10]} 33. Re3 {[%clk 0:00:10]}  d4 {[%clk 0:01:09]} 34. Rxe6+ {[%clk 0:00:07]}  Bxe6 {[%clk 0:01:09]} 35. Rxe6+ {[%clk 0:00:07]}  Rxe6 {[%clk 0:01:09]} 36. Bg6 {[%clk 0:00:08]}  Rxc1# {[%clk 0:01:09]} 0-1


[Site "https://www.chess.com"]

[Event "Titled Tuesday Blitz May 03 Early 2022"]
[White "Priyanka, K"]
[Black "Prohorov, Olexandr"]
[WhiteFideId "5082986"]
[BlackFideId "14105578"]
[WhiteElo "1905"]
[BlackElo "1993"]
[Result "0-1"]
[Round "07"]
[TimeControl "180+1"]
[Date "2022.05.03"]
[WhiteClock "0:00:25"]
[BlackClock "0:00:30"]

1. e4 {[%clk 0:03:00]}  c5 {[%clk 0:02:58]} 2. Nf3 {[%clk 0:02:59]}  e6 {[%clk 0:02:59]} 3. d4 {[%clk 0:02:59]}  cxd4 {[%clk 0:03:00]} 4. Nxd4 {[%clk 0:03:00]}  Qb6 {[%clk 0:03:00]} 5. Nb3 {[%clk 0:02:57]}  Nf6 {[%clk 0:02:59]} 6. Bd3 {[%clk 0:02:47]}  Nc6 {[%clk 0:02:57]} 7. Be3 {[%clk 0:02:46]}  Qc7 {[%clk 0:02:55]} 8. f4 {[%clk 0:02:43]}  d5 {[%clk 0:02:52]} 9. e5 {[%clk 0:02:40]}  Nd7 {[%clk 0:02:52]} 10. O-O {[%clk 0:02:37]}  a6 {[%clk 0:02:29]} 11. N1d2 {[%clk 0:02:35]}  g6 {[%clk 0:02:28]} 12. Rc1 {[%clk 0:02:21]}  b5 {[%clk 0:02:05]} 13. c3 {[%clk 0:02:20]}  Be7 {[%clk 0:02:02]} 14. Nd4 {[%clk 0:02:19]}  Bb7 {[%clk 0:01:59]} 15. N2f3 {[%clk 0:02:16]}  Nc5 {[%clk 0:01:56]} 16. Bc2 {[%clk 0:02:09]}  O-O {[%clk 0:01:51]} 17. b4 {[%clk 0:02:07]}  Ne4 {[%clk 0:01:47]} 18. Bxe4 {[%clk 0:02:03]}  dxe4 {[%clk 0:01:48]} 19. Nd2 {[%clk 0:02:03]}  Nxd4 {[%clk 0:01:44]} 20. cxd4 {[%clk 0:01:58]}  Qd7 {[%clk 0:01:41]} 21. a3 {[%clk 0:01:55]}  a5 {[%clk 0:01:35]} 22. Qb3 {[%clk 0:01:46]}  axb4 {[%clk 0:01:29]} 23. axb4 {[%clk 0:01:46]}  Bd5 {[%clk 0:01:30]} 24. Qb1 {[%clk 0:01:46]}  Qb7 {[%clk 0:01:27]} 25. Rc2 {[%clk 0:01:37]}  Ra3 {[%clk 0:01:25]} 26. Kf2 {[%clk 0:01:33]}  Rc8 {[%clk 0:01:21]} 27. Rfc1 {[%clk 0:01:31]}  Rxc2 {[%clk 0:01:17]} 28. Rxc2 {[%clk 0:01:31]}  Kg7 {[%clk 0:01:17]} 29. Qc1 {[%clk 0:01:22]}  Bxb4 {[%clk 0:01:12]} 30. Rc7 {[%clk 0:01:19]}  Qb6 {[%clk 0:01:09]} 31. Rc8 {[%clk 0:01:12]}  Ra2 {[%clk 0:01:06]} 32. Rc2 {[%clk 0:01:12]}  Qa6 {[%clk 0:00:57]} 33. Rxa2 {[%clk 0:01:03]}  Qxa2 {[%clk 0:00:58]} 34. Ke1 {[%clk 0:00:59]}  Qc4 {[%clk 0:00:48]} 35. Qxc4 {[%clk 0:00:49]}  bxc4 {[%clk 0:00:49]} 36. Kd1 {[%clk 0:00:47]}  c3 {[%clk 0:00:45]} 37. Nb1 {[%clk 0:00:45]}  Bb3+ {[%clk 0:00:42]} 38. Kc1 {[%clk 0:00:45]}  c2 {[%clk 0:00:41]} 39. Kb2 {[%clk 0:00:25]}  cxb1=Q+ {[%clk 0:00:42]} 40. Kxb1 {[%clk 0:00:26]}  Kf8 {[%clk 0:00:31]} 41. Kb2 {[%clk 0:00:25]}  Bc4 {[%clk 0:00:30]} 0-1


[Site "https://www.chess.com"]

[Event "Titled Tuesday Blitz May 03 Early 2022"]
[White "Richter, Nils"]
[Black "Shyaamnikhil P"]
[WhiteFideId "12990809"]
[BlackFideId "5024218"]
[WhiteElo "2557"]
[BlackElo "2720"]
[Result "1-0"]
[Round "07"]
[TimeControl "180+1"]
[Date "2022.05.03"]
[WhiteClock "0:01:46"]
[BlackClock "0:01:16"]

1. d4 {[%clk 0:03:00]}  Nf6 {[%clk 0:02:57]} 2. Nf3 {[%clk 0:03:00]}  e6 {[%clk 0:02:57]} 3. c4 {[%clk 0:02:59]}  d5 {[%clk 0:02:57]} 4. e3 {[%clk 0:02:59]}  a6 {[%clk 0:02:51]} 5. b3 {[%clk 0:02:58]}  Bb4+ {[%clk 0:02:47]} 6. Nbd2 {[%clk 0:02:56]}  c5 {[%clk 0:02:41]} 7. dxc5 {[%clk 0:02:51]}  Bxc5 {[%clk 0:02:35]} 8. Bb2 {[%clk 0:02:51]}  Nc6 {[%clk 0:02:35]} 9. Be2 {[%clk 0:02:50]}  d4 {[%clk 0:02:34]} 10. exd4 {[%clk 0:02:49]}  Nxd4 {[%clk 0:02:34]} 11. Nxd4 {[%clk 0:02:47]}  Bxd4 {[%clk 0:02:35]} 12. Bxd4 {[%clk 0:02:47]}  Qxd4 {[%clk 0:02:36]} 13. Nf3 {[%clk 0:02:48]}  Qc3+ {[%clk 0:02:31]} 14. Nd2 {[%clk 0:02:43]}  O-O {[%clk 0:02:19]} 15. Rc1 {[%clk 0:02:43]}  Qa5 {[%clk 0:02:16]} 16. Qc2 {[%clk 0:02:35]}  Rd8 {[%clk 0:02:14]} 17. Rd1 {[%clk 0:02:31]}  e5 {[%clk 0:02:04]} 18. O-O {[%clk 0:02:31]}  Bf5 {[%clk 0:01:55]} 19. Qxf5 {[%clk 0:02:25]}  Rxd2 {[%clk 0:01:54]} 20. Rxd2 {[%clk 0:02:18]}  Qxd2 {[%clk 0:01:55]} 21. Bf3 {[%clk 0:02:19]}  Qxa2 {[%clk 0:01:44]} 22. Bxb7 {[%clk 0:02:15]}  Rb8 {[%clk 0:01:44]} 23. h3 {[%clk 0:01:57]}  a5 {[%clk 0:01:30]} 24. Bf3 {[%clk 0:01:48]}  Qxb3 {[%clk 0:01:24]} 25. Qxe5 {[%clk 0:01:47]}  Qxc4 {[%clk 0:01:16]} 26. Qxb8+ {[%clk 0:01:46]} 1-0


[Site "https://www.chess.com"]

[Event "Titled Tuesday Blitz May 03 Early 2022"]
[White "Rodchenkov, Sergey D."]
[Black "Barria Zuniga, Daniel"]
[WhiteFideId "4168712"]
[BlackFideId "3400816"]
[WhiteElo "2306"]
[BlackElo "2414"]
[Result "0-1"]
[Round "07"]
[TimeControl "180+1"]
[Date "2022.05.03"]
[WhiteClock "0:02:00"]
[BlackClock "0:02:16"]

1. e4 {[%clk 0:03:00]}  e6 {[%clk 0:02:51]} 2. d4 {[%clk 0:03:00]}  d5 {[%clk 0:02:51]} 3. Nc3 {[%clk 0:03:01]}  Bb4 {[%clk 0:02:50]} 4. e5 {[%clk 0:03:00]}  Ne7 {[%clk 0:02:49]} 5. a3 {[%clk 0:03:01]}  Bxc3+ {[%clk 0:02:49]} 6. bxc3 {[%clk 0:03:01]}  c5 {[%clk 0:02:49]} 7. Qg4 {[%clk 0:03:01]}  O-O {[%clk 0:02:48]} 8. Bd3 {[%clk 0:03:00]}  Nd7 {[%clk 0:02:47]} 9. Qh5 {[%clk 0:02:54]}  f5 {[%clk 0:02:43]} 10. Qd1 {[%clk 0:02:33]}  Qa5 {[%clk 0:02:37]} 11. Bd2 {[%clk 0:02:33]}  Qa4 {[%clk 0:02:35]} 12. Nf3 {[%clk 0:02:32]}  h6 {[%clk 0:02:31]} 13. h4 {[%clk 0:02:12]}  b6 {[%clk 0:02:29]} 14. h5 {[%clk 0:02:09]}  Ba6 {[%clk 0:02:28]} 15. O-O {[%clk 0:02:07]}  Rac8 {[%clk 0:02:19]} 16. Qe2 {[%clk 0:02:00]}  c4 {[%clk 0:02:16]} 0-1


[Site "https://www.chess.com"]